bitfinex-derivatives/quotes_ETHF0:USTF0_20250626
["timestamp","ask_amount","ask_price","bid_price","bid_amount"]
[1750975486556,0.82563,2421.6,2421.5,0.82563]
[1750975486962,0.82563,2421.6,2421.5,2.97823]
[1750975487863,0.82565,2421.5,2421.4,5.26590464]
[1750975488267,0.82563,2421.6,2421.5,0.82563]
[1750975488865,0.82565,2421.5,2421.4,7.44979464]
[1750975489064,0.82565,2421.5,2421.4,6.62414464]
[1750975489265,0.82565,2421.5,2421.4,1.23244464]
[1750975489465,10.10587176,2421.5,2421.0,2.4293047]
[1750975489659,0.82578,2421.1,2421.0,1e-08]
[1750975489862,0.82585,2420.9,2420.8,3.2078]
[1750975490058,0.82599,2420.5,2420.3,3.23907294]
[1750975490263,8.31367176,2420.6,2420.2,3.23907294]
[1750975490566,0.82605,2420.3,2420.2,3.23907294]
[1750975490765,2.3449,2420.5,2420.1,0.8261]
[1750975490974,2.3449,2420.5,2420.0,13.86610294]
[1750975490975,0.82607,2420.3,2420.0,13.86610294]
[1750975491167,0.82607,2420.3,2420.1,3.23907294]
[1750975491362,4.39557,2420.8,2420.2,3.2078]
[1750975491363,2.3308,2420.8,2420.2,3.2078]
[1750975491563,0.82599,2420.5,2420.3,3.02593]
[1750975492076,0.82602,2420.4,2420.3,2.1999]
[1750975492261,0.82601,2420.5,2420.3,3.02595]
[1750975492461,3.2078,2421.3,2420.3,7.30577176]
[1750975492768,12.0867,2421.4,2420.9,0.82583]
[1750975492963,9.9079,2421.4,2421.0,0.8258]
[1750975493168,0.82575,2421.2,2420.9,0.82583]
[1750975493371,0.82575,2421.2,2420.8,2.1999]
[1750975493670,0.82572,2421.3,2421.1,0.82576]
[1750975493862,9.9079,2421.4,2420.8,2.1999]
[1750975494066,9.9079,2421.4,2421.3,0.82571]
[1750975494067,7.618,2421.4,2421.3,0.82571]
[1750975494469,3.28903894,2421.5,2421.3,0.82571]
[1750975494770,0.82571,2421.3,2421.1,2.99606]
[1750975494963,0.82575,2421.2,2421.1,2.1703]
[1750975495361,0.82578,2421.1,2420.9,0.82583]
[1750975495562,0.82577,2421.2,2421.0,0.82582]
[1750975496070,3.2078,2421.3,2420.8,2.1999]
[1750975496268,0.82584,2421.0,2420.8,2.1999]
[1750975496476,0.82584,2421.0,2420.8,3.02576]
[1750975496866,0.82584,2421.0,2420.7,10.7118]
[1750975496867,0.82585,2420.9,2420.7,11.5377]
[1750975497273,0.82583,2421.0,2420.8,0.82586]
[1750975497969,0.82583,2421.0,2420.9,0.82585]
[1750975498476,5.3423,2421.3,2420.7,13.0075]
[1750975498477,3.2078,2421.3,2421.0,0.82579]
[1750975498769,0.82578,2421.2,2421.0,0.82579]
[1750975499074,0.82578,2421.1,2421.0,0.82582]
[1750975500275,0.82582,2421.0,2420.9,0.82583]
[1750975500468,0.82579,2421.1,2421.0,0.82581]
[1750975500669,0.82575,2421.2,2421.1,0.82577]
[1750975501481,0.8257,2421.4,2420.8,4.36036]
[1750975501776,5.27187,2421.6,2421.0,3.2078]
[1750975501977,0.82578,2421.1,2421.0,3.2078]
[1750975502368,2.06399,2421.7,2421.2,0.82573]
[1750975502576,0.82573,2421.3,2421.0,3.2078]
[1750975502776,0.82573,2421.3,2421.1,2.3163]
[1750975503178,0.82575,2421.2,2421.1,3.14205]
[1750975503377,0.82578,2421.1,2421.0,4.03362]
[1750975503773,0.82577,2421.2,2421.0,4.03362]
[1750975503972,0.82578,2421.1,2421.0,3.2078]
[1750975504270,0.82576,2421.2,2421.1,0.82578]
[1750975505680,0.82576,2421.2,2421.0,4.0336]
[1750975506485,0.82578,2421.1,2421.0,4.0336]
[1750975506975,5.27189,2421.6,2421.0,4.0336]
[1750975506976,0.82576,2421.2,2421.1,0.82577]
[1750975507375,0.82574,2421.3,2421.1,0.82577]
[1750975507577,0.82574,2421.3,2421.1,3.10737]
[1750975507879,0.82575,2421.2,2421.1,3.10737]
[1750975508286,0.82599,2420.5,2420.4,5.4132]
[1750975508480,3.2078,2420.5,2420.0,5.30246]
[1750975508680,3.2078,2420.5,2420.2,0.82609]
[1750975508989,0.82611,2420.2,2420.1,0.82612]
[1750975509282,0.82611,2420.2,2420.1,3.12872]
[1750975509473,0.82611,2420.2,2420.1,2.3026]
[1750975509676,0.82612,2420.1,2420.0,2.1947]
[1750975511279,0.82626,2419.7,2419.6,2.3026]
[1750975511787,10.37902176,2420.1,2419.6,3.12888]
[1750975511788,0.82624,2419.8,2419.6,3.12888]
[1750975512179,0.82624,2419.8,2419.7,0.82626]
[1750975512382,0.82624,2419.8,2419.6,3.12887]
[1750975512683,0.82621,2419.9,2419.7,0.82625]
[1750975512882,3.2078,2420.1,2419.6,2.3026]
[1750975513381,3.2078,2420.1,2419.7,3.2078]
[1750975513583,4.03395,2420.1,2419.9,0.82618]
[1750975513772,4.03395,2420.1,2420.0,2.2442]
[1750975515279,0.82616,2420.0,2419.9,2.3768]
[1750975515472,0.82626,2419.7,2419.6,2.3631]
[1750975516282,0.82626,2419.7,2419.6,3.18939]
[1750975516483,0.82626,2419.7,2419.6,2.3631]
[1750975516678,3.2078,2419.8,2419.3,2.2961]
[1750975516879,0.82636,2419.4,2419.3,2.2961]
[1750975517183,0.82636,2419.4,2419.3,4.6592]
[1750975517578,0.82636,2419.4,2419.3,2.2961]
[1750975517880,0.8265,2419.0,2418.9,9.8701]
[1750975518080,0.82644,2419.2,2419.0,0.82647]
[1750975518474,0.82646,2419.1,2419.0,2.3474]
[1750975518790,0.82652,2419.0,2418.8,10.62335]
[1750975519001,3.2078,2419.2,2418.8,9.7968]
[1750975519180,0.82653,2418.9,2418.8,12.1442]
[1750975519486,0.82653,2418.9,2418.8,4.6372]
[1750975519685,3.2078,2418.9,2418.4,10.7148]
[1750975519880,3.2078,2419.2,2418.7,2.3474]
[1750975520083,0.82654,2418.9,2418.8,0.82657]
[1750975520379,0.82654,2418.9,2418.7,2.3474]
[1750975520380,0.82655,2418.9,2418.7,3.17398]
[1750975520888,0.82656,2418.9,2418.7,3.17398]
[1750975521082,3.2078,2419.2,2418.7,3.17398]
[1750975521284,0.82661,2418.7,2418.6,0.82662]
[1750975521484,7.64763,2419.2,2418.6,0.82662]
[1750975521681,0.82662,2418.7,2418.5,15.15084]
[1750975521989,3.2078,2419.2,2418.5,6.8162]
[1750975522189,4.03424,2419.2,2419.1,0.82646]
[1750975522387,0.82637,2419.4,2419.3,0.82639]
[1750975522582,0.82637,2419.4,2419.0,3.2078]
[1750975522583,0.8264,2419.3,2419.2,0.82642]
[1750975523382,0.82635,2419.5,2419.1,2.2336]
[1750975523583,0.82635,2419.5,2419.4,0.82636]
[1750975523783,0.82635,2419.5,2419.3,0.82637]
[1750975524088,3.2078,2419.9,2419.3,5.4414]
[1750975524284,3.2078,2419.9,2419.5,0.82632]
[1750975524483,3.2078,2419.9,2419.6,3.20318]
[1750975524684,0.82623,2419.8,2419.7,0.82625]
[1750975524885,0.82623,2419.8,2419.3,3.2078]
[1750975525191,0.8264,2419.3,2419.2,4.5647]
[1750975525578,0.82646,2419.1,2419.0,3.2078]
[1750975526693,0.82646,2419.2,2419.0,4.0343]
[1750975526885,3.2078,2419.5,2419.0,4.0343]
[1750975527085,0.82646,2419.2,2419.1,2.2078]
[1750975528584,0.82646,2419.2,2419.1,3.03426]
[1750975528787,0.82646,2419.2,2419.1,2.2078]
[1750975530191,0.82646,2419.2,2419.1,3.03426]
[1750975530493,0.82639,2419.4,2419.2,0.82641]
[1750975530694,0.82639,2419.4,2419.3,0.8264]
[1750975531594,0.82632,2419.6,2419.5,0.82631]
[1750975531786,3.2078,2419.8,2419.3,3.2078]
[1750975531988,0.82624,2419.8,2419.7,0.82626]
[1750975532293,0.82621,2419.9,2419.8,0.82621]
[1750975532983,0.82618,2420.0,2419.8,0.82621]
[1750975533183,2.06514,2420.3,2419.8,0.82621]
[1750975533391,0.82626,2419.7,2419.6,10.6078]
[1750975533692,0.82625,2419.8,2419.7,0.82626]
[1750975534095,0.82625,2419.8,2419.6,11.43407]
[1750975534489,2.06535,2420.1,2419.6,3.2078]
[1750975534693,0.82626,2419.7,2419.6,11.43408]
[1750975535094,0.82625,2419.8,2419.6,11.43408]
[1750975535393,0.82626,2419.7,2419.6,10.6078]
[1750975536094,0.82626,2419.7,2419.6,3.2078]
[1750975536693,0.82636,2419.4,2419.3,7.4]
[1750975537696,0.82636,2419.4,2419.3,9.6787]
[1750975538194,2.2944,2419.9,2419.3,9.6787]
[1750975538493,0.82628,2419.7,2419.6,0.82629]
[1750975538797,0.82625,2419.8,2419.7,0.82626]
[1750975539194,0.82622,2419.9,2419.8,0.82623]
[1750975540594,0.82622,2419.9,2419.5,2.2787]
[1750975540595,3.2078,2420.3,2419.7,10.6078]
[1750975540789,3.2078,2420.3,2420.2,0.82609]
[1750975541791,4.03385,2420.3,2420.2,0.82609]
[1750975541990,3.2078,2420.3,2420.2,0.82609]
[1750975542391,0.8261,2420.2,2420.1,0.82611]
[1750975542594,4.03388,2420.3,2420.2,0.82609]
[1750975542895,3.2078,2420.3,2420.2,0.82609]
[1750975543197,0.82609,2420.2,2420.1,7.399]
[1750975543596,0.82609,2420.2,2420.1,8.22512]
[1750975543897,0.82615,2420.1,2420.0,0.82616]
[1750975544500,0.82611,2420.2,2419.9,7.399]
[1750975544697,2.46338894,2420.8,2420.2,2.06523]
[1750975545000,13.52039536,2421.3,2420.2,2.06523]
[1750975545001,0.82594,2420.7,2420.5,3.2078]
[1750975545191,9.86238894,2421.3,2420.6,4.605]
[1750975545392,0.82586,2420.9,2420.7,8.22488]
[1750975545590,7.91638894,2421.4,2420.7,7.399]
[1750975545898,3.2078,2421.7,2421.2,3.2078]
[1750975546097,0.8257,2421.4,2421.3,2.2106]
[1750975546299,3.2078,2421.7,2421.3,2.2106]
[1750975546494,9.7781607,2422.1,2421.3,4.605]
[1750975546495,2.2089,2422.1,2421.3,4.605]
[1750975546694,52.05938894,2422.2,2421.3,4.605]
[1750975546695,0.82557,2421.8,2421.6,0.8256]
[1750975546891,0.82553,2421.9,2421.7,0.82556]
[1750975547397,0.82558,2421.7,2421.6,7.399]
[1750975548897,0.82556,2421.8,2421.6,7.399]
[1750975549089,3.2078,2422.3,2421.5,3.2078]
[1750975549090,0.82561,2421.6,2421.5,3.2078]
[1750975549290,0.82568,2421.4,2421.3,4.605]
[1750975551392,2.06358,2422.2,2421.3,9.605]
[1750975551597,0.82555,2421.8,2421.6,0.82558]
[1750975551791,0.82561,2421.6,2421.5,3.2078]
[1750975551998,0.82562,2421.6,2421.4,0.82567]
[1750975552394,0.82562,2421.6,2421.4,0.82566]
[1750975552594,0.82562,2421.6,2421.3,4.605]
[1750975552595,0.82562,2421.6,2421.5,0.82564]
[1750975553605,0.8256,2421.7,2421.5,0.82564]
[1750975554301,0.82555,2421.8,2421.6,0.82558]
[1750975554500,0.82555,2421.8,2421.7,0.82558]
[1750975555005,0.82552,2421.9,2421.7,0.82558]
[1750975555204,3.2078,2422.1,2421.6,7.303]
[1750975555600,0.82559,2421.7,2421.5,4.03342]
[1750975555904,0.82561,2421.6,2421.5,3.2078]
[1750975559902,7.06411,2421.6,2420.9,52.8038]
[1750975560203,7.06411,2421.6,2420.6,2.06483]
[1750975560204,0.82585,2420.9,2420.8,2.1879]
[1750975560402,0.82585,2420.9,2420.7,7.302]
[1750975560403,0.82595,2420.6,2420.5,4.03378]
[1750975560603,0.82595,2420.6,2420.5,8.12798]
[1750975561003,2.06454,2421.0,2420.5,8.12798]
[1750975561004,0.82595,2420.7,2420.5,8.12798]
[1750975561404,4.704,2421.1,2420.8,0.82587]
[1750975561600,0.82587,2420.9,2420.7,0.82589]
[1750975561904,0.82577,2421.2,2420.6,2.2717]
[1750975562200,0.82577,2421.2,2421.1,0.82578]
[1750975562596,3.2078,2421.4,2421.3,0.82571]
[1750975562798,2.3398,2421.8,2421.3,3.2078]
[1750975562799,2.06395,2421.7,2421.3,3.2078]
[1750975563108,2.3398,2421.8,2420.5,1.22646497]
[1750975563109,0.82595,2420.6,2420.5,1.22646497]
[1750975563303,0.82597,2420.6,2420.4,0.826]
[1750975563500,0.82597,2420.6,2420.4,0.82599]
[1750975563802,3.2078,2420.9,2420.8,0.82588]
[1750975564208,0.82574,2421.3,2421.0,0.82579]
[1750975564411,3.2078,2421.4,2421.2,0.82573]
[1750975564704,3.2078,2421.4,2421.3,0.82571]
[1750975564907,3.2078,2421.7,2421.6,0.82561]
[1750975565906,0.82561,2421.6,2421.3,10.0644]
[1750975566109,3.2078,2421.7,2421.3,10.0644]
[1750975566406,4.03339,2421.7,2421.6,0.82561]
[1750975566606,4.03339,2421.7,2421.3,10.0644]
[1750975566801,3.2078,2421.7,2421.6,0.82561]
[1750975567001,4.0334,2421.7,2421.5,0.82561]
[1750975567201,4.0334,2421.7,2421.3,10.0644]
[1750975567202,3.2078,2421.7,2421.3,10.0644]
[1750975567402,0.82566,2421.5,2421.4,0.82567]
[1750975567610,5.5592,2421.7,2421.3,15.0758]
[1750975567811,0.82568,2421.4,2421.3,15.0758]
[1750975568109,0.82568,2421.4,2421.3,15.90151]
[1750975568503,0.82568,2421.4,2421.3,3.2078]
[1750975569009,5.10587176,2421.5,2421.3,3.2078]
[1750975569010,0.82565,2421.5,2421.3,3.2078]
[1750975569199,2.306,2421.6,2421.3,3.2078]
[1750975569396,0.82578,2421.1,2421.0,2.1464]
[1750975569705,3.2078,2421.1,2420.3,4.43426497]
[1750975570008,3.2078,2421.1,2420.4,2.2512]
[1750975570009,0.82599,2420.5,2420.4,2.2512]
[1750975570303,0.82599,2420.5,2420.4,4.452]
[1750975570511,0.82599,2420.5,2420.4,6.09253007]
[1750975570907,0.82599,2420.5,2420.4,6.9173149]
[1750975571602,0.82602,2420.4,2420.3,0.79196726]
[1750975571807,0.82609,2420.2,2420.1,2.4653149]
[1750975572610,0.82616,2420.0,2419.9,3.23907294]
[1750975573211,0.82619,2419.9,2419.8,7.302]
[1750975573412,0.82619,2419.9,2419.8,2.2781]
[1750975573614,0.82622,2419.8,2419.7,13.74987294]
[1750975574006,0.82622,2419.8,2419.7,6.44687294]
[1750975574212,0.82622,2419.8,2419.7,3.23907294]
[1750975574513,0.82626,2419.7,2419.6,3.23907294]
[1750975574719,0.82626,2419.7,2419.5,12.82017294]
[1750975575010,0.82629,2419.6,2419.5,12.82017294]
[1750975575317,0.82629,2419.6,2419.5,9.5811]
[1750975575815,0.82629,2419.6,2419.5,12.87394934]
[1750975576115,0.82633,2419.5,2419.4,7.92880105]
[1750975577009,0.82633,2419.5,2419.4,5.459]
[1750975579315,0.82631,2419.6,2419.4,5.459]
[1750975579619,0.82633,2419.5,2419.4,6.28534]
[1750975579926,0.82633,2419.5,2419.4,5.459]
[1750975581526,0.82631,2419.6,2419.4,6.28534]
[1750975581826,0.82633,2419.5,2419.4,5.459]
[1750975583020,0.82643,2419.2,2419.1,2.1391]
[1750975583723,2.06617,2419.1,2418.3,3.2078]
[1750975583919,0.82667,2418.5,2418.4,4.6605]
[1750975584428,0.82666,2418.6,2418.4,5.4872]
[1750975585119,0.82667,2418.5,2418.4,5.4872]
[1750975585324,3.2078,2418.9,2418.5,0.82666]
[1750975585518,2.2657,2419.1,2418.5,2.1588]
[1750975585719,0.82656,2418.9,2418.7,0.82659]
[1750975585918,10.5138,2419.2,2418.8,2.1588]
[1750975585919,3.2078,2419.2,2418.8,2.1588]
[1750975586119,3.2078,2419.2,2418.8,2.98536]
[1750975586322,0.82647,2419.1,2418.9,0.82651]
[1750975586722,0.82647,2419.1,2418.8,2.98535]
[1750975586926,0.82647,2419.1,2418.9,0.82653]
[1750975587121,0.82647,2419.1,2418.9,2.98533]
[1750975587634,0.8265,2419.0,2418.9,2.1588]
[1750975588418,3.2078,2419.2,2418.4,9.6529]
[1750975588419,2.06617,2419.1,2418.4,2.3469]
[1750975588631,0.82667,2418.5,2418.4,2.3469]
[1750975589122,5.27417,2418.9,2418.4,4.5008]
[1750975589123,0.82664,2418.6,2418.4,4.5008]
[1750975589324,0.82664,2418.6,2418.4,5.32747]
[1750975590032,4.2073,2419.0,2418.4,5.32747]
[1750975590033,2.141,2419.0,2418.4,4.5008]
[1750975590332,0.82658,2418.8,2418.6,0.82661]
[1750975590530,0.82658,2418.8,2418.7,0.8266]
[1750975590829,2.141,2419.0,2418.7,0.8266]
[1750975591028,11.2815275,2419.2,2418.7,0.8266]
[1750975591236,11.2815275,2419.2,2418.4,6.56753]
[1750975591429,0.82653,2418.9,2418.4,6.56753]
[1750975591736,0.82653,2418.9,2418.7,0.82657]
[1750975592028,0.82653,2418.9,2418.7,0.82658]
[1750975592229,0.82657,2418.8,2418.7,0.82658]
[1750975592928,3.2078,2418.9,2418.4,4.5008]
[1750975593124,0.82667,2418.5,2418.4,4.5008]
[1750975593325,0.82667,2418.5,2418.4,2.3469]
[1750975594124,3.2078,2418.6,2418.5,0.82667]
[1750975594630,0.8266,2418.7,2418.6,0.82663]
[1750975595031,9.15562834,2418.9,2418.8,0.82657]
[1750975595232,4.03435,2418.9,2418.8,0.82657]
[1750975595826,3.2078,2418.9,2418.8,0.82657]
[1750975596419,3.2078,2418.9,2418.3,3.2078]
[1750975596622,0.82665,2418.6,2418.5,0.82665]
[1750975596826,0.82665,2418.6,2418.5,0.82667]
[1750975597030,0.82667,2418.5,2418.2,2.8688]
[1750975597226,0.8267,2418.4,2418.3,1.4946]
[1750975597430,0.8267,2418.4,2418.0,3.2078]
[1750975597431,8.32907834,2418.6,2418.0,3.2078]
[1750975597735,0.82677,2418.2,2418.1,0.82679]
[1750975597927,2.06668,2418.5,2418.0,3.2078]
[1750975598129,0.82681,2418.1,2418.0,3.2078]
[1750975598531,0.82679,2418.2,2418.0,3.2078]
[1750975598835,0.82667,2418.5,2418.3,0.82672]
[1750975599032,8.32907834,2418.6,2418.1,1.4293]
[1750975599223,4.03435,2418.9,2418.7,0.8266]
[1750975599428,3.2078,2418.9,2418.4,2.8098]
[1750975599625,3.2078,2418.9,2418.4,4.2146]
[1750975599824,0.82661,2418.7,2418.6,0.82663]
[1750975600029,0.82658,2418.8,2418.7,0.8266]
[1750975600233,5.12127834,2418.8,2418.4,5.04128]
[1750975600432,0.82667,2418.5,2418.4,4.2146]
[1750975601137,0.82666,2418.6,2418.4,4.2146]
[1750975601338,0.82667,2418.5,2418.4,4.2146]
[1750975602238,0.82667,2418.5,2418.4,2.7853]
[1750975605847,0.82667,2418.5,2418.4,1.3805]
[1750975606039,0.82674,2418.3,2418.2,1.3661]
[1750975606240,3.2078,2418.6,2418.2,2.19285]
[1750975606546,0.82674,2418.3,2418.2,1.3661]
[1750975607148,3.2078,2418.6,2418.2,1.3661]
[1750975607342,3.2078,2418.6,2418.2,2.19284]
[1750975607644,0.82672,2418.4,2418.3,0.82673]
[1750975607844,0.8267,2418.4,2418.3,2.28101]
[1750975608046,0.82669,2418.5,2418.4,0.8267]
[1750975608543,0.8267,2418.4,2418.3,2.28101]
[1750975610645,0.82667,2418.5,2418.4,0.82668]
[1750975611042,0.8267,2418.4,2418.3,2.28102]
[1750975612646,8.32907834,2418.8,2418.3,1.4543]
[1750975612848,0.82668,2418.5,2418.4,0.82668]
[1750975614350,0.8267,2418.4,2418.3,1.4543]
[1750975614542,0.8267,2418.4,2418.3,2.28104]
[1750975616644,2.06678,2418.4,2418.0,4.07578394]
[1750975616850,0.82681,2418.1,2418.0,1.3874]
[1750975617745,0.82681,2418.1,2418.0,2.8871]
[1750975618148,0.82681,2418.1,2418.0,1.3874]
[1750975619148,0.82687,2417.9,2417.8,1.23248394]
[1750975619349,8.32907834,2417.9,2417.4,3.2078]
[1750975619548,0.82694,2417.7,2417.6,1.3942]
[1750975620751,7.29,2418.0,2417.6,1.3942]
[1750975620955,2.46338894,2418.3,2417.7,3.2078]
[1750975621256,0.8269,2417.9,2417.8,1.3942]
[1750975622747,0.82686,2418.0,2417.8,2.22109]
[1750975623058,0.82686,2418.0,2417.9,1.4381]
[1750975623255,0.82686,2418.0,2417.9,2.9028]
[1750975624256,0.82678,2418.2,2418.0,0.82682]
[1750975624556,0.82678,2418.2,2418.1,2.8578]
[1750975625354,2.46338894,2418.5,2418.1,2.8578]
[1750975625557,0.82671,2418.4,2418.2,0.82677]
[1750975625753,0.82671,2418.4,2418.3,1.37]
[1750975629455,0.82669,2418.5,2418.3,2.19674]
[1750975629668,3.2078,2418.6,2418.5,0.82667]
[1750975629961,0.82667,2418.5,2418.4,1.3199]
[1750975630157,0.82667,2418.5,2418.4,2.6975]
[1750975630561,0.82667,2418.5,2418.4,3.5242]
[1750975630764,0.82667,2418.5,2418.4,2.6975]
[1750975632058,8.32907834,2418.6,2418.1,1.3931]
[1750975632249,7.291,2418.8,2418.1,1.3931]
[1750975632250,0.82677,2418.2,2418.1,1.3931]
[1750975636057,0.82677,2418.2,2417.8,1.3505]
[1750975636058,4.13388,2418.2,2417.8,1.3505]
[1750975636255,0.82687,2417.9,2417.8,1.3505]
[1750975636655,0.82687,2417.9,2417.1,3.29284934]
[1750975636656,2.06728,2417.8,2417.1,3.29284934]
[1750975636852,0.82708,2417.3,2417.2,1.3525]
[1750975637960,0.82715,2417.1,2417.0,2.24127]
[1750975638161,0.82725,2416.8,2416.7,1.3525]
[1750975638361,0.82728,2416.7,2416.6,3.29284934]
[1750975638561,0.82735,2416.5,2416.4,3.29284934]
[1750975638756,5.27599,2416.8,2416.3,3.29284934]
[1750975638757,0.82739,2416.4,2416.3,3.29284934]
[1750975639057,0.82739,2416.4,2416.3,1.3666]
[1750975639265,0.82737,2416.5,2416.3,2.19402]
[1750975639465,0.82739,2416.4,2416.3,1.3666]
[1750975639854,3.2078,2416.8,2416.3,1.3666]
[1750975639855,0.82738,2416.5,2416.3,1.3666]
[1750975640056,0.82739,2416.4,2416.3,1.3666]
[1750975640467,3.2078,2416.8,2416.3,1.3666]
[1750975640657,0.82737,2416.5,2416.1,3.2078]
[1750975640859,3.2078,2416.8,2416.2,0.82744]
[1750975641060,0.82735,2416.6,2416.3,0.82741]
[1750975641264,0.82735,2416.6,2416.4,3.62728]
[1750975641468,0.82735,2416.5,2416.4,2.7999]
[1750975641965,0.8273,2416.7,2416.5,0.82734]
[1750975642163,3.2078,2416.8,2416.6,1.4723]
[1750975642364,9.99804,2417.3,2416.7,4.5907]
[1750975642365,3.2078,2417.3,2416.7,4.5907]
[1750975642670,0.82713,2417.2,2417.0,0.82716]
[1750975642868,0.82713,2417.2,2417.1,2.8573]
[1750975643772,4.0349,2417.3,2417.1,3.68444]
[1750975643970,3.2078,2417.3,2417.2,0.82711]
[1750975644162,3.2078,2417.3,2417.2,2.21011]
[1750975644360,7.292,2417.7,2417.2,6.383]
[1750975644667,10.79246728,2418.2,2417.3,4.6616]
[1750975644869,0.82692,2417.8,2417.3,4.6616]
[1750975645060,0.82695,2417.7,2417.5,0.82699]
[1750975645263,0.82695,2417.7,2417.6,1.4538]
[1750975647862,0.82693,2417.8,2417.6,2.28078]
[1750975648163,3.2078,2417.9,2417.6,4.6616]
[1750975648365,0.82692,2417.8,2417.7,1.3827]
[1750975648670,3.2078,2417.9,2417.8,0.82691]
[1750975648868,3.2078,2417.9,2417.8,2.08741]
[1750975649462,4.03467,2417.9,2417.8,2.08741]
[1750975649663,3.2078,2417.9,2417.8,2.08741]
[1750975650169,4.03467,2417.9,2417.8,2.08741]
[1750975650370,4.03467,2417.9,2417.8,1.2605]
[1750975650570,4.03467,2417.9,2417.8,2.08741]
[1750975650967,3.2078,2417.9,2417.8,2.08741]
[1750975651171,4.03467,2417.9,2417.8,1.2605]
[1750975651867,3.2078,2417.9,2417.8,2.08741]
[1750975652966,4.03467,2417.9,2417.8,2.08741]
[1750975653167,3.2078,2417.9,2417.8,2.08741]
[1750975653474,0.82679,2418.2,2418.0,0.82682]
[1750975654070,0.82686,2418.0,2417.8,1.2605]
[1750975654472,0.82686,2418.0,2417.9,0.82687]
[1750975655072,0.8268,2418.2,2417.8,1.2605]
[1750975655470,0.82682,2418.1,2418.0,0.82683]
[1750975656569,3.2078,2418.3,2418.1,0.82677]
[1750975656775,0.82677,2418.2,2418.1,0.82677]
[1750975657166,3.2078,2418.6,2418.3,0.82671]
[1750975657372,0.8267,2418.4,2418.2,0.82675]
[1750975657575,0.82667,2418.5,2418.4,0.82667]
[1750975657768,2.06637,2418.9,2418.3,1.199]
[1750975657769,0.8267,2418.4,2418.3,1.199]
[1750975658371,0.8267,2418.4,2418.3,2.02574]
[1750975658568,0.8267,2418.4,2418.3,1.199]
[1750975659073,2.46338894,2419.2,2418.3,6.199]
[1750975659273,0.82658,2418.8,2418.5,3.2078]
[1750975659475,0.82655,2418.9,2418.7,0.82658]
[1750975659674,0.82655,2418.9,2418.8,0.82657]
[1750975659870,0.82657,2418.8,2418.7,0.82658]
[1750975660076,3.2078,2419.1,2418.6,8.5128]
[1750975660077,0.82651,2419.0,2418.8,0.82653]
[1750975660579,0.82651,2419.0,2418.9,0.82653]
[1750975660974,0.82653,2418.9,2418.8,0.82654]
[1750975661169,0.82655,2418.9,2418.6,8.5128]
[1750975661680,0.82655,2418.9,2418.8,0.82657]
[1750975662278,3.2078,2419.1,2418.6,8.5128]
[1750975662580,3.2078,2419.1,2418.6,8.5118]
[1750975662783,0.82658,2418.8,2418.7,0.8266]
[1750975663082,3.2078,2419.1,2418.6,8.5118]
[1750975663083,0.8266,2418.7,2418.6,9.33842]
[1750975663581,3.2078,2419.1,2418.6,9.33842]
[1750975663582,0.8266,2418.8,2418.6,9.33842]
[1750975663881,0.8266,2418.8,2418.7,0.8266]
[1750975664575,0.8266,2418.7,2418.6,9.33841]
[1750975665375,0.82659,2418.8,2418.7,0.8266]
[1750975665882,0.8266,2418.7,2418.6,9.33841]
[1750975666281,0.82659,2418.8,2418.7,0.8266]
[1750975667576,0.82659,2418.8,2418.7,2.2065]
[1750975667881,3.2078,2419.1,2418.7,1.3799]
[1750975668080,0.82653,2419.0,2418.9,0.82651]
[1750975668281,2.46338894,2419.3,2418.8,1.2872]
[1750975668282,3.2078,2419.1,2418.8,1.2872]
[1750975668479,0.82653,2418.9,2418.8,1.2872]
[1750975669382,0.82657,2418.8,2418.7,7.277]
[1750975670778,0.8266,2418.7,2418.6,1.2338]
[1750975670981,0.82664,2418.6,2418.5,10.4848]
[1750975671279,0.82664,2418.6,2418.5,3.2078]
[1750975671482,0.82674,2418.3,2418.2,13.0961]
[1750975671684,0.82681,2418.1,2418.0,8.5212]
[1750975671884,0.82681,2418.1,2418.0,7.277]
[1750975674481,0.82681,2418.1,2418.0,8.6957]
[1750975675685,0.82687,2417.9,2417.8,2.06479]
[1750975675892,0.82687,2417.9,2417.8,8.4949]
[1750975676984,0.827,2417.6,2417.4,0.82705]
[1750975677187,0.827,2417.6,2417.3,4.85038965]
[1750975677188,0.827,2417.6,2417.5,0.82701]
[1750975677385,0.82701,2417.5,2417.3,8.80608965]
[1750975677589,0.82701,2417.5,2417.4,7.258]
[1750975677791,0.82701,2417.5,2417.4,8.6744]
[1750975678290,0.82701,2417.5,2417.4,1.4164]
[1750975678484,0.82701,2417.5,2417.4,3.88676724]
[1750975679191,3.2078,2417.8,2417.4,4.71381724]
[1750975679492,0.82701,2417.5,2417.4,3.06533369]
[1750975680093,0.82701,2417.5,2417.4,3.89238369]
[1750975680685,5.27486,2418.1,2417.6,0.82694]
[1750975680887,0.82689,2417.9,2417.7,1.4623]
[1750975681188,3.2078,2418.1,2417.9,0.82685]
[1750975681189,0.82684,2418.0,2417.9,0.82685]
[1750975681389,3.2078,2418.1,2418.0,0.82684]
[1750975681390,4.03463,2418.1,2418.0,0.82684]
[1750975681981,3.2078,2418.1,2417.3,3.71661369]
[1750975682186,0.82693,2417.8,2417.7,1.4623]
[1750975683386,5.27485,2418.1,2417.7,1.4623]
[1750975683387,3.2078,2418.1,2417.7,1.4623]
[1750975683588,0.82682,2418.1,2418.0,0.82681]